bitfinex/quotes_ETHUSD_20240928
["timestamp","ask_amount","ask_price","bid_price","bid_amount"]
[1727502781620,1.1544986,2689.6,2689.3,3.36681749]
[1727502781869,0.10304606,2689.4,2689.3,3.36681749]
[1727502782021,1.1544986,2689.5,2689.0,7.08559749]
[1727502782229,1.25762757,2689.5,2689.0,7.08559749]
[1727502782480,4.97580757,2689.5,2689.0,7.08562749]
[1727502783328,8.69404757,2689.5,2689.0,7.08562749]
[1727502783530,0.10312897,2689.5,2689.3,3.36681749]
[1727502783954,1.1544986,2689.7,2689.3,3.36681749]
[1727502784139,0.10290166,2689.6,2689.3,4.20267327]
[1727502784351,5.6705786,2689.9,2689.4,4.51039533]
[1727502784686,0.10316887,2689.8,2689.4,3.71828]
[1727502785143,0.10316887,2689.8,2689.4,7.43649]
[1727502785349,0.10316887,2689.8,2689.4,3.71821]
[1727502785586,0.10316887,2689.8,2689.4,7.43642]
[1727502786187,0.10316887,2689.8,2689.4,8.66724566]
[1727502786361,0.10316887,2689.8,2689.6,7.08481749]
[1727502786556,17.61070058,2690.0,2689.6,7.08481749]
[1727502786758,0.10299626,2689.9,2689.6,7.08481749]
[1727502787180,0.10299626,2689.9,2689.6,7.1591662]
[1727502787385,0.10299626,2689.9,2689.8,3.71774]
[1727502788487,0.10299626,2689.9,2689.8,4.47924]
[1727502789115,0.10299626,2689.9,2689.8,7.84605749]
[1727502790779,0.10299626,2689.9,2689.8,4.47924]
[1727502790980,0.10299626,2689.9,2689.8,4.55358138]
[1727502791179,0.10299626,2689.9,2689.8,5.78899993]
[1727502794374,0.10299626,2689.9,2689.8,8.78899993]
[1727502794537,0.10299626,2689.9,2689.8,8.71465855]
[1727502801875,16.45620198,2690.0,2689.9,7.51251]
[1727502802198,16.45620198,2690.0,2689.9,9.87581902]
[1727502803713,9.07458617,2690.0,2689.9,10.42581902]
[1727502804078,9.07458617,2690.0,2689.9,13.79263651]
[1727502804908,9.0597754,2690.0,2689.9,13.79263651]
[1727502805396,9.0597754,2690.0,2689.9,13.24263651]
[1727502808478,9.1480208,2690.0,2689.9,13.24263651]
[1727502809807,8.72423248,2690.0,2689.9,13.79263651]
[1727502814916,0.28540748,2690.0,2689.9,13.79263651]
[1727502815114,0.7598,2691.4,2691.3,3.71557]
[1727502815316,0.7598,2691.4,2691.3,7.08238749]
[1727502815517,0.84099838,2691.4,2691.3,7.15668833]
[1727502815819,0.84099838,2691.4,2691.3,7.15668794]
[1727502816316,0.84099838,2691.4,2691.3,7.08238749]
[1727502816498,0.84099838,2691.4,2691.3,7.15668697]
[1727502816702,0.84099838,2691.4,2691.3,7.15668816]
[1727502816886,0.08119838,2691.4,2691.3,11.16963631]
[1727502817426,0.7598,2691.8,2691.5,3.71531]
[1727502817573,0.7598,2691.8,2691.3,7.08239749]
[1727502817772,0.0818746,2691.7,2691.3,7.08239749]
[1727502817985,0.7598,2691.6,2691.2,3.71572]
[1727502818385,0.08180311,2691.5,2691.1,7.08275749]
[1727502818614,1.1544986,2692.1,2691.0,3.716]
[1727502818615,0.7598,2691.4,2691.0,3.716]
[1727502818851,0.84152031,2691.4,2691.0,7.43201]
[1727502819005,0.84152031,2691.4,2691.0,3.716]
[1727502820125,3.79728031,2691.4,2690.8,3.71627]
[1727502820309,3.79728031,2691.4,2690.6,7.08340749]
[1727502820310,3.71567,2691.3,2690.6,7.08340749]
[1727502820511,0.84135468,2691.2,2690.8,3.71627]
[1727502820724,0.84135468,2691.2,2690.8,7.43256]
[1727502821054,0.84135468,2691.2,2690.8,3.71627]
[1727502821956,0.84135468,2691.2,2690.6,7.4331]
[1727502822286,0.84135468,2691.2,2690.7,3.71646]
[1727502823109,0.84135468,2691.2,2690.8,3.71629]
[1727502824543,0.7598,2691.0,2690.6,3.71657]
[1727502824760,0.7598,2691.0,2690.6,3.71654]
[1727502825056,0.08137379,2690.9,2690.8,3.71633]
[1727502825423,0.08137379,2690.9,2690.6,7.08335749]
[1727502825625,0.08137379,2690.9,2690.7,3.71642]
[1727502826958,0.08137379,2690.9,2690.8,3.71636]
[1727502847989,1.23587239,2690.9,2690.7,3.7165]
[1727502851710,1.1544986,2690.8,2690.7,3.7165]
[1727502852001,1.23547725,2690.8,2690.7,3.7165]
[1727502852166,0.08097865,2690.8,2690.7,4.08815]
[1727502853408,0.08097865,2690.8,2690.7,4.16247006]
[1727502853908,1.1544986,2691.1,2691.0,3.71609]
[1727502854107,1.1544986,2691.2,2691.1,3.71595]
[1727502854791,1.1544986,2691.4,2691.3,3.71567]
[1727502854991,1.1544986,2691.8,2691.7,3.71512]
[1727502855191,1.1544986,2691.9,2691.8,3.71488]
[1727502855566,1.1544986,2691.9,2691.5,3.71529]
[1727502855567,0.0765343,2691.9,2691.5,3.71529]
[1727502855774,1.1544986,2691.8,2691.5,3.71529]
[1727502855967,2.4681957,2691.9,2691.3,3.7156]
[1727502855968,1.23102599,2691.7,2691.3,3.7156]
[1727502856195,1.1544986,2691.6,2691.3,3.7156]
[1727502856435,0.07651615,2691.5,2691.3,7.43116]
[1727502856635,0.07651615,2691.5,2691.4,3.71553]
[1727502857413,1.1544986,2691.7,2691.4,3.71553]
[1727502857614,0.07629483,2691.6,2691.4,3.71553]
[1727502857854,0.07629483,2691.6,2691.5,3.7154]
[1727502858899,0.07629483,2691.6,2691.5,4.46913209]
[1727502859100,1.1544986,2691.8,2691.5,4.46913209]
[1727502859437,2.3916614,2691.9,2691.1,3.7159]
[1727502859438,1.1544986,2691.7,2691.6,3.71526]
[1727502859643,0.07664795,2691.7,2691.6,3.71526]
[1727502860002,1.1544986,2691.8,2691.6,3.71526]
[1727502860204,0.07664795,2691.7,2691.6,3.71526]
[1727502860497,1.1544986,2691.8,2691.6,3.71526]
[1727502860706,0.07664795,2691.7,2691.6,3.71526]
[1727502861113,1.1544986,2691.8,2691.6,3.71526]
[1727502861316,0.07664795,2691.7,2691.5,3.71537]
[1727502861731,1.1544986,2691.8,2691.5,3.71537]
[1727502861938,0.07656515,2691.6,2691.5,3.71537]
[1727502862149,1.1544986,2691.8,2691.5,3.71537]
[1727502862647,0.07664795,2691.7,2691.5,3.71537]
[1727502863006,1.1544986,2691.8,2691.5,3.71537]
[1727502863348,1.23114655,2691.7,2691.4,3.71552]
[1727502863511,1.1544986,2691.6,2691.4,3.71552]
[1727502863696,1.23114655,2691.7,2691.4,3.71552]
[1727502863900,0.07648236,2691.5,2691.4,3.71552]
[1727502864404,1.1544986,2691.7,2691.4,3.71552]
[1727502864701,0.07656515,2691.6,2691.4,3.71545]
[1727502864936,0.07656515,2691.6,2691.4,4.458568]
[1727502866501,1.23106375,2691.6,2691.4,4.458568]
[1727502866700,0.07656515,2691.6,2691.4,3.71545]
[1727502866921,1.23106375,2691.6,2691.4,3.71545]
[1727502867098,0.07656515,2691.6,2691.4,3.71545]
[1727502868346,0.07656515,2691.6,2691.4,7.4309]
[1727502868730,0.07656515,2691.6,2691.4,3.71545]
[1727502868900,0.07656515,2691.6,2691.5,3.7154]
[1727502869244,0.07656515,2691.6,2691.5,3.78969857]
[1727502869443,0.07656515,2691.6,2691.5,3.78969526]
[1727502869644,1.1544986,2691.8,2691.6,3.71516]
[1727502869846,0.07656805,2691.7,2691.5,3.7154]
[1727502870143,1.23106665,2691.7,2691.5,3.7154]
[1727502870298,1.1544986,2691.8,2691.5,3.7154]
[1727502870496,0.07648525,2691.6,2691.5,3.7154]
[1727502870742,2.0726986,2691.7,2691.2,3.71569]
[1727502870946,1.23098385,2691.6,2691.3,3.71564]
[1727502872698,1.23098385,2691.6,2691.2,3.71569]
[1727502873103,1.23098385,2691.6,2691.2,3.78999289]
[1727502873305,1.23098385,2691.6,2691.2,7.50572289]
[1727502873800,1.23098385,2691.6,2691.2,3.71569]
[1727502874614,1.1544986,2691.5,2691.2,3.71569]
[1727502874814,0.07652666,2691.4,2691.0,5.26939904]
[1727502875029,0.9182,2691.3,2691.0,8.98535904]
[1727502875354,0.9182,2691.3,2691.2,3.71581]
[1727502876221,0.99464386,2691.3,2691.2,3.71581]
[1727502880575,0.07644386,2691.3,2691.2,3.71581]
[1727502880959,2.0726986,2691.5,2691.2,3.71581]
[1727502881166,0.07631952,2691.3,2691.0,3.71604]
[1727502881365,4.6336,2691.5,2690.9,3.71614]
[1727502881862,0.07660508,2691.4,2690.9,3.71614]
[1727502882280,0.07660508,2691.4,2690.9,7.43228]
[1727502883377,0.07660508,2691.4,2690.7,4.60642]
[1727502883556,4.63395,2691.3,2690.8,0.07431332]
[1727502883757,0.9182,2691.3,2690.8,5.34403236]
[1727502884078,0.07640945,2691.2,2690.8,5.34403236]
[1727502884479,0.9182,2691.3,2690.8,5.34403236]
[1727502884682,0.07588728,2691.1,2690.8,5.34403236]
[1727502884881,0.07597011,2691.2,2690.8,6.2500776]
[1727502885056,0.07580445,2691.0,2690.8,5.34403236]
[1727502885255,0.9182,2691.3,2690.8,5.34403236]
[1727502885456,0.07597011,2691.2,2690.8,5.34403236]
[1727502885993,0.9182,2691.3,2690.8,5.34403236]
[1727502886191,0.07597011,2691.2,2690.8,5.34403236]
[1727502886396,0.9182,2691.3,2690.8,5.34403236]
[1727502886693,0.07597011,2691.2,2690.8,5.34403236]
[1727502886990,0.9182,2691.3,2690.8,5.34403236]
[1727502887194,3.7159,2691.2,2690.7,3.71642]
[1727502887349,7.43181,2691.2,2690.7,3.71642]
[1727502887555,0.07624425,2691.1,2690.7,3.71642]
[1727502888594,0.9182,2691.0,2690.6,3.71655]
[1727502888909,0.07607861,2690.9,2690.6,3.71655]
[1727502889049,0.07607861,2690.9,2690.6,4.7042149]
[1727502889569,0.07607861,2690.9,2690.7,3.71647]
[1727502891579,0.07607861,2690.9,2690.7,3.66647]
[1727502892091,0.07607861,2690.9,2690.7,5.21985904]
[1727502893714,0.07607861,2690.9,2690.7,8.93628904]
[1727502894083,0.07607861,2690.9,2690.8,3.71636]
[1727502894281,0.07607861,2690.9,2690.7,5.21985904]
[1727502894692,0.07607861,2690.9,2690.8,3.71636]
[1727502894909,0.07607861,2690.9,2690.7,8.93626904]
[1727502895677,0.07607861,2690.9,2690.8,3.71636]
[1727502896126,0.07607861,2690.9,2690.8,3.79067908]
[1727502896615,0.07582556,2690.9,2690.8,3.79067908]
[1727502896815,2.09639146,2691.2,2690.8,3.79067908]
[1727502896979,0.0759912,2691.1,2690.8,3.79067908]
[1727502898105,0.0759912,2691.1,2691.0,3.71609]
[1727502898498,0.0759912,2691.1,2690.9,5.26959904]
[1727502898715,0.0759912,2691.1,2690.9,8.98573904]
[1727502898902,0.0759912,2691.1,2691.0,3.71609]
[1727502901585,1.16229146,2691.3,2690.9,5.26959904]
[1727502901785,1.16229146,2691.3,2691.1,3.71593]
[1727502902108,0.07615448,2691.2,2691.1,3.71593]
[1727502902620,1.16229146,2691.3,2691.1,3.71593]
[1727502902825,0.07588407,2691.2,2691.1,3.71593]
[1727502903011,1.16229146,2691.5,2691.4,3.71553]
[1727502903220,1.16229146,2691.6,2691.2,3.7158]
[1727502903390,1.16229146,2691.4,2691.1,0.8595]
[1727502903586,1.16229146,2691.4,2691.0,7.43199]
[1727502903786,0.07606451,2691.3,2691.1,3.7159]
[1727502905501,0.95056451,2691.3,2691.1,7.43178]
[1727502905834,0.95056451,2691.3,2691.1,3.71588]
[1727502906335,2.11285597,2691.3,2691.1,3.71588]
[1727502906833,2.11285597,2691.3,2691.0,3.71604]
[1727502907034,2.11285597,2691.3,2690.9,3.71615]
[1727502907490,2.11285597,2691.3,2691.0,3.71596]
[1727502907692,2.11285597,2691.3,2691.1,3.71591]
[1727502907934,2.11285597,2691.3,2691.1,3.71586]
[1727502908600,1.23835597,2691.3,2691.1,3.71586]
[1727502913336,1.23835597,2691.3,2691.2,3.71581]
[1727502916600,1.23835597,2691.3,2691.1,3.71586]
[1727502917237,1.16229146,2691.2,2691.1,3.71586]
[1727502917538,1.23804135,2691.2,2690.9,3.71609]
[1727502917898,1.16229146,2691.1,2690.9,3.71609]
[1727502918101,1.16229146,2691.1,2690.9,4.3292679]
[1727502918322,0.07558424,2691.0,2690.9,4.3292679]
[1727502919136,0.07558424,2691.0,2690.9,5.26947904]
[1727502920634,1.16229146,2691.1,2691.0,3.71609]
[1727502920853,1.16229146,2691.2,2691.0,3.71609]
[1727502921026,1.16229146,2691.2,2691.1,3.71595]
[1727502921217,1.54972195,2691.3,2691.2,3.71581]
[1727502921415,1.16496068,2691.3,2691.2,3.71581]
[1727502921946,1.24079339,2691.3,2691.2,3.71581]
[1727502922545,1.24079339,2691.3,2691.1,3.71594]
[1727502922748,1.16496068,2691.2,2691.1,3.71594]
[1727502923210,0.07574989,2691.2,2691.1,3.71594]
[1727502923411,2.06616068,2691.3,2691.1,3.71594]
[1727502923647,0.07580136,2691.2,2691.1,3.71594]
[1727502923849,1.16496068,2691.2,2691.1,3.71594]
[1727502924145,1.24076204,2691.2,2691.1,3.71594]
[1727502925411,0.07580136,2691.2,2691.1,3.71594]
[1727502925613,2.45092195,2691.3,2690.9,4.57843]
[1727502925614,2.45092195,2691.3,2691.0,3.71608]
[1727502925934,1.16497634,2691.1,2691.0,3.71608]
[1727502926318,1.24069488,2691.1,2691.0,3.71608]
[1727502927148,0.07571854,2691.1,2690.9,3.71613]
[1727502927319,1.62544049,2691.1,2691.0,3.71609]
[1727502928147,1.24071519,2691.1,2691.0,3.71609]
[1727502928357,0.07571854,2691.1,2691.0,3.71609]
[1727502929457,0.07571854,2691.1,2691.0,5.4768509]
[1727502929607,0.07571854,2691.1,2691.0,5.55116354]
[1727502930208,1.16499665,2691.5,2691.3,3.71567]
[1727502930458,1.16499665,2691.5,2691.4,3.71553]
[1727502932362,1.16499665,2691.6,2691.5,3.7154]
[1727502932546,1.16499665,2691.8,2691.6,3.71518]
[1727502932755,1.16499665,2691.8,2691.7,3.71512]
[1727502933283,1.16499665,2691.9,2691.7,5.26850904]
[1727502933439,0.07636405,2691.8,2691.7,5.34280257]
[1727502933640,0.07636405,2691.8,2691.7,5.26850904]
[1727502933854,0.07636405,2691.8,2691.7,6.16687794]
[1727502934237,1.16499665,2692.0,2691.9,3.71484]
[1727502934448,1.16499665,2692.0,2691.7,6.13062904]
[1727502934650,1.16499665,2692.0,2691.8,3.71497]
[1727502934877,1.16499665,2691.9,2691.7,3.71504]
[1727502935186,1.16499665,2692.0,2691.7,3.71504]
[1727502935544,1.16499665,2691.9,2691.8,3.71498]
[1727502935872,1.54972195,2692.1,2691.8,3.71498]
[1727502935873,1.16499665,2692.0,2691.8,3.71495]
[1727502937052,0.07652453,2691.9,2691.8,3.71495]
[1727502937482,0.07652453,2691.9,2691.8,5.54977594]
[1727502937647,1.16499665,2692.1,2692.0,3.71471]
[1727502937843,1.16499665,2692.2,2691.9,5.34250505]
[1727502938051,0.07690446,2692.1,2692.0,3.71471]
[1727502939596,1.16499665,2692.3,2692.0,3.71471]
[1727502939750,0.07691733,2692.1,2692.0,3.71471]
[1727502939950,1.16499665,2692.3,2692.0,3.71471]
[1727502940285,1.16499665,2692.4,2692.2,5.26781904]
[1727502940487,1.16499665,2692.5,2692.3,3.71422]
[1727502940692,1.16499665,2692.6,2692.3,3.71422]
[1727502941545,1.16499665,2692.6,2692.2,3.71443]
[1727502941749,1.16499665,2692.6,2692.2,7.42877]
[1727502942086,1.16499665,2692.6,2692.2,3.71434]
[1727502942642,1.16499665,2692.6,2692.3,3.71427]
[1727502942846,1.16499665,2692.6,2692.2,3.71434]
[1727502943047,2.42702195,2692.7,2692.2,3.71434]
[1727502943048,5.75603665,2692.7,2692.2,3.71434]
[1727502943479,1.16499665,2692.6,2692.2,3.71434]
[1727502944086,0.07531997,2692.5,2692.2,3.71434]
[1727502944442,5.75603665,2692.7,2692.2,3.71434]
[1727502944741,0.07540271,2692.6,2692.2,3.71434]
[1727502945345,0.8773,2692.5,2692.2,3.71434]
[1727502945859,0.07523722,2692.4,2692.2,3.71434]
[1727502950749,0.07523722,2692.4,2692.3,3.71429]
[1727502951047,0.07523722,2692.4,2692.2,3.71434]
[1727502951252,0.07523722,2692.4,2692.2,7.42869]
[1727502952494,0.07523722,2692.4,2692.2,3.71434]
[1727502954461,0.07523722,2692.4,2692.2,5.26772904]
[1727502954695,2.04259665,2692.8,2692.4,3.71404]
[1727502954897,0.07368258,2692.7,2692.4,3.71404]
[1727502955065,0.8776,2692.8,2692.4,3.71404]
[1727502955398,0.07368258,2692.7,2692.4,3.71404]
[1727502955802,0.8776,2692.8,2692.4,3.71404]
[1727502956275,0.07368258,2692.7,2692.4,3.71404]
[1727502956690,0.07359985,2692.6,2692.4,3.71404]
[1727502956902,0.8776,2692.8,2692.4,3.71404]
[1727502957271,0.07368258,2692.7,2692.4,3.71404]
[1727502957590,0.8776,2692.8,2692.4,3.71404]
[1727502957790,0.07359985,2692.6,2692.4,3.71404]
[1727502958001,0.8776,2692.8,2692.4,3.71404]
[1727502958202,0.0735171,2692.5,2692.4,3.71404]
[1727502958408,0.8776,2692.8,2692.4,6.33194252]
[1727502958592,0.07360296,2692.5,2692.4,6.25767094]
[1727502958764,0.8776,2692.8,2692.4,2.54363094]
[1727502958966,0.8776,2692.8,2692.5,3.71401]
[1727502960174,0.8776,2692.8,2692.5,4.80327209]
[1727502961383,0.8776,2692.8,2692.4,1.55338904]
[1727502961590,4.59128,2692.8,2692.3,3.71419]
[1727502962185,5.75627665,2692.8,2692.3,3.71419]
[1727502962548,0.07475062,2692.7,2692.3,3.71419]
[1727502962994,5.75627665,2692.8,2692.3,3.71419]
[1727502963194,0.07466792,2692.6,2692.3,3.71419]
[1727502963396,0.07475062,2692.7,2692.3,3.71419]
[1727502963797,4.59128,2692.8,2692.3,3.71419]
[1727502963997,0.07466792,2692.6,2692.3,3.71419]
[1727502964199,0.07475062,2692.7,2692.3,3.71419]
[1727502964407,0.07458521,2692.5,2692.3,3.71419]
[1727502964583,5.75627665,2692.8,2692.3,3.71419]
[1727502964921,0.0745025,2692.4,2692.3,3.71419]
[1727502965093,5.75627665,2692.8,2692.3,3.71419]
[1727502965284,0.07475062,2692.7,2692.3,3.71419]
[1727502965485,5.75627665,2692.8,2692.3,3.71419]
[1727502965908,0.07475062,2692.7,2692.3,3.71419]
[1727502966109,5.75627665,2692.8,2692.3,3.71419]
[1727502966437,0.07475062,2692.7,2692.3,3.71419]
[1727502966716,3.71375,2692.7,2692.3,3.71419]
[1727502966933,0.07466792,2692.6,2692.3,3.71419]
[1727502967282,3.78854792,2692.6,2692.1,3.71448]
[1727502967886,3.78854792,2692.6,2691.8,4.63558]
[1727502967887,3.71433,2692.3,2691.8,4.63558]
[1727502968099,5.8314637,2692.2,2691.6,4.63587]
[1727502968408,0.95193705,2692.2,2691.8,3.71498]
[1727502969221,2.1169337,2692.2,2691.7,0.371517]
[1727502969415,2.1169337,2692.2,2691.7,4.086607]
[1727502969617,2.1169337,2692.2,2691.8,0.87967281]
[1727502970766,0.8804,2692.0,2691.6,3.71513]
[1727502971059,0.8804,2691.8,2691.4,7.48]
[1727502971227,0.8804,2691.8,2691.3,3.71566]
[1727502971554,0.8804,2691.8,2691.3,4.6298729]
[1727502971555,0.07383317,2691.7,2691.3,4.6298729]
[1727502971720,4.5954,2691.8,2691.3,4.6298729]
[1727502972054,0.07383317,2691.7,2691.3,4.6298729]
[1727502972357,5.76039665,2691.8,2691.3,4.6298729]
[1727502972619,0.0737504,2691.6,2691.3,4.6298729]
[1727502972750,5.76039665,2691.8,2691.3,4.6298729]
[1727502972955,0.07366763,2691.5,2691.3,4.6298729]
[1727502973131,1.16499665,2691.7,2691.3,4.6298729]
[1727502973466,0.0737504,2691.6,2691.3,4.6298729]
[1727502973628,0.0737504,2691.6,2691.3,0.9142129]
[1727502973827,0.0737504,2691.6,2691.4,4.17852529]
[1727502974029,2.04539665,2691.8,2691.4,4.17852529]
[1727502974327,1.16499665,2691.7,2691.4,4.17852529]
[1727502974531,0.07295507,2691.6,2691.4,4.17852529]
[1727502975027,0.07295507,2691.6,2691.3,4.6298329]
[1727502975271,0.07295507,2691.6,2691.4,3.71553]
[1727502975742,0.07295507,2691.6,2691.2,3.71572]
[1727502976071,0.8804,2691.5,2691.1,1.55338904]
[1727502976247,2.04539665,2691.5,2691.2,3.71581]
[1727502976430,0.07343036,2691.4,2691.2,3.71581]
[1727502977530,0.07343036,2691.4,2691.2,7.43153]
[1727502977730,0.07343036,2691.4,2691.2,3.71572]
[1727502979985,0.07343036,2691.4,2690.7,0.873]
[1727502980143,0.07343036,2691.4,2690.1,8.25919638]
[1727502980144,0.8804,2690.8,2690.3,3.71698]
[1727502980333,0.07260175,2690.7,2690.2,3.71711]
[1727502980535,0.12260181,2690.7,2690.2,3.71711]
[1727502980775,0.07260175,2690.7,2690.2,4.78579087]
[1727502980982,0.07260175,2690.7,2690.3,1.55338904]
[1727502981134,0.8804,2690.8,2690.4,3.7168]
[1727502981530,0.07220687,2690.7,2690.4,3.7168]
[1727502981734,0.8804,2690.8,2690.5,3.71677]
[1727502981977,0.8804,2690.8,2690.4,4.35812007]
[1727502981978,0.07154094,2690.7,2690.4,4.35812007]
[1727502982369,0.8804,2690.8,2690.4,4.35812007]
[1727502982590,0.07142432,2690.6,2690.4,4.35812007]
[1727502982736,0.8804,2690.8,2690.4,4.35812007]
[1727502982931,0.07145646,2690.7,2690.4,4.35812007]
[1727502983132,0.8804,2690.8,2690.4,4.35812007]
[1727502983445,0.07148652,2690.7,2690.4,4.35812007]
[1727502983668,0.8804,2690.8,2690.4,4.35812007]
[1727502983879,0.8804,2690.8,2690.1,0.873]
[1727502983880,0.07140369,2690.6,2690.1,0.873]
[1727502984078,3.71658,2690.7,2690.1,4.5903]
[1727502984257,0.07132085,2690.5,2690.1,4.5903]
[1727502984453,3.71664,2690.6,2690.1,1.8591039]
[1727502984652,0.07123801,2690.4,2690.1,0.873]
[1727502984877,0.07132085,2690.5,2690.1,0.873]
[1727502985084,0.07103684,2690.3,2690.1,0.873]
[1727502985284,3.71664,2690.6,2690.1,0.873]
[1727502985794,3.71658,2690.7,2690.2,1.55338904]
[1727502985795,0.07120255,2690.5,2690.2,1.55338904]
[1727502986155,4.16185013,2691.1,2690.5,0.873]
[1727502986156,3.716,2691.1,2690.5,0.873]
[1727502986356,0.07166622,2691.0,2690.6,4.3309699]
[1727502986593,0.07166622,2691.0,2690.6,3.71664]
[1727502988398,3.78776622,2691.0,2690.5,0.873]
[1727502989367,3.78776622,2691.0,2690.5,4.58973]
[1727502989368,0.07166622,2691.0,2690.5,4.58973]
[1727502989806,0.07166622,2691.0,2690.5,5.420386]
[1727502990869,3.78775622,2691.0,2690.5,5.420386]
[1727502993175,0.07166622,2691.0,2690.8,5.26962904]
[1727502993401,0.07166622,2691.0,2690.9,1.01651571]
[1727502993600,0.91,2691.6,2690.9,5.36125019]
[1727502993779,0.91,2691.6,2691.1,1.55338904]
[1727502993979,0.91,2691.6,2691.2,3.71572]
[1727502994318,0.91,2691.6,2691.0,3.71603]
[1727502994513,0.91,2691.6,2691.0,7.897843]
[1727502995178,0.91,2691.6,2691.2,3.71581]
[1727502995414,0.91,2691.6,2691.1,3.71591]
[1727502996412,0.91,2691.6,2691.2,3.71579]
[1727502997313,0.06661915,2691.5,2691.0,7.897783]
[1727502997524,0.06661915,2691.5,2691.1,0.8839983]
[1727502998013,0.06661915,2691.5,2691.1,4.5998583]
[1727502998397,0.06661915,2691.5,2691.1,0.8839983]
[1727502998596,0.06661915,2691.5,2691.0,3.71597]
[1727502998797,3.78205915,2691.5,2691.0,3.71597]
[1727502999319,0.06661915,2691.5,2691.0,3.71597]
[1727503000023,3.78202915,2691.5,2691.0,3.71597]
[1727503000816,0.06661915,2691.5,2691.0,3.71597]
[1727503001928,0.06661915,2691.5,2691.0,7.43196]
[1727503002128,0.06661915,2691.5,2691.0,3.71597]
[1727503005833,0.91,2691.4,2691.0,3.71597]
[1727503006305,0.06645352,2691.3,2691.0,3.71597]
[1727503007812,0.06645352,2691.3,2691.0,7.43198]
[1727503008534,0.06645352,2691.3,2691.2,3.71581]
[1727503009224,0.06645352,2691.3,2691.2,3.7901186]
[1727503009428,0.8648,2691.6,2691.4,3.71542]
[1727503010008,0.8648,2691.6,2691.3,3.71567]
[1727503011041,2.02665013,2691.8,2691.3,0.8815]
[1727503011213,0.8648,2691.8,2691.6,3.71516]
[1727503011613,0.8648,2692.0,2691.7,3.71512]
[1727503012526,0.0671514,2691.9,2691.7,3.71512]
[1727503013043,0.0671514,2691.9,2691.4,3.71545]
[1727503013243,0.0671514,2691.9,2691.6,3.71523]
[1727503013543,0.0671514,2691.9,2691.7,3.71511]
[1727503013844,0.0671514,2691.9,2691.4,1.17533036]
[1727503014010,0.0671514,2691.9,2691.6,3.71525]
[1727503014209,0.0671514,2691.9,2691.3,2.43480247]
[1727503014511,0.0671514,2691.9,2691.5,3.71527]
[1727503018180,1.22900153,2691.9,2691.5,3.71527]
[1727503018586,0.0671514,2691.9,2691.5,3.71527]
[1727503020350,0.0671514,2691.9,2691.6,3.71525]
[1727503020649,0.0671514,2691.9,2691.5,3.71539]
[1727503022064,1.22900153,2691.9,2691.5,3.71539]
[1727503022751,0.0671514,2691.9,2691.5,3.71539]
[1727503023853,1.22900153,2691.9,2691.5,3.71539]
[1727503024756,0.0671514,2691.9,2691.5,3.71539]
[1727503025157,1.22900153,2691.9,2691.5,3.71539]
[1727503027415,1.22900153,2691.9,2691.5,7.43069]
[1727503028727,1.22900153,2691.9,2691.5,3.7153]
[1727503028928,1.22900153,2691.9,2691.5,7.43062]
[1727503029426,1.22900153,2691.9,2691.5,3.7153]
[1727503029632,1.22900153,2691.9,2691.6,3.71525]
[1727503032331,1.16185013,2691.8,2691.6,3.71525]
[1727503032710,0.06741758,2691.7,2691.6,3.71525]
[1727503032910,1.16185013,2691.8,2691.6,3.71525]
[1727503033129,0.06741758,2691.7,2691.6,3.71525]
[1727503033437,1.16185013,2691.8,2691.6,3.71525]
[1727503033613,0.06741758,2691.7,2691.6,3.71525]
[1727503033938,1.16185013,2691.8,2691.6,3.71525]
[1727503034099,0.06741758,2691.7,2691.6,3.71525]
[1727503034496,1.16185013,2691.8,2691.6,3.71525]
[1727503034701,0.06741758,2691.7,2691.6,3.71525]
[1727503035242,1.16185013,2691.8,2691.6,3.71525]
[1727503035417,0.06741758,2691.7,2691.6,3.71525]
[1727503035737,1.22926771,2691.7,2691.6,3.71525]
[1727503035939,1.16185013,2691.7,2691.6,3.71525]
[1727503036142,1.22920581,2691.7,2691.6,3.71525]
[1727503037534,0.06735568,2691.7,2691.6,3.71525]
[1727503038130,1.54972195,2691.8,2691.6,3.71525]
[1727503038329,1.23155871,2691.7,2691.6,3.71525]
[1727503038660,0.0673838,2691.7,2691.6,3.71525]
[1727503038819,1.61710575,2691.7,2691.6,3.71525]
[1727503039015,2.41422195,2691.7,2691.4,3.71549]
[1727503039223,0.06730101,2691.6,2691.5,3.71536]
[1727503040514,1.23191805,2691.6,2691.5,3.71536]
[1727503040715,0.06730101,2691.6,2691.5,3.71536]
[1727503041630,1.61702296,2691.6,2691.5,3.71536]
[1727503042419,1.61702296,2691.6,2691.5,3.7154]
[1727503042954,1.61702296,2691.6,2691.4,3.71549]
[1727503043117,1.1646802,2691.5,2691.4,3.71549]
[1727503043513,0.06739341,2691.5,2691.4,3.71549]
[1727503044153,1.23213252,2691.5,2691.4,3.71549]
[1727503044577,0.06739341,2691.5,2691.4,3.71549]
[1727503044783,1.2321842,2691.5,2691.4,3.71549]
[1727503044955,0.06739341,2691.5,2691.4,3.71549]
[1727503045257,1.2322533,2691.5,2691.4,3.71549]
[1727503046778,0.06739341,2691.5,2691.4,3.71549]
[1727503046959,1.23234588,2691.5,2691.4,3.71549]
[1727503047292,0.06739341,2691.5,2691.4,3.71549]
[1727503047450,1.23240294,2691.5,2691.4,3.71549]
[1727503047824,0.06739341,2691.5,2691.4,3.71549]
[1727503048686,1.23248621,2691.5,2691.4,3.71549]
[1727503048887,1.23261901,2691.5,2691.4,3.71549]
[1727503049188,1.23257981,2691.5,2691.3,3.7156]
[1727503049345,1.16516595,2691.4,2691.3,3.7156]
[1727503049747,1.16534645,2691.4,2691.2,3.7158]
[1727503050057,0.06732719,2691.4,2691.3,3.71567]
[1727503050259,1.61704914,2691.4,2691.2,3.7158]
[1727503050589,1.61704914,2691.4,2691.2,3.71574]
[1727503050793,1.1654112,2691.3,2691.2,3.71574]
[1727503051146,1.1653934,2691.3,2691.2,3.71573]
[1727503051349,1.23266973,2691.3,2691.2,3.71573]
[1727503051554,0.06729173,2691.3,2691.2,3.71573]
[1727503051757,1.61701368,2691.3,2691.2,3.71573]
[1727503052892,1.23286237,2691.3,2691.2,3.71573]
[1727503053260,0.06729173,2691.3,2691.2,3.71573]
[1727503053601,1.23299387,2691.3,2691.2,3.71573]
[1727503053759,1.61701368,2691.3,2691.2,3.71573]
[1727503054090,0.06729173,2691.3,2691.2,3.71573]